lending/lending_fUSD_20240807
["ID","MTS","AMOUNT","RATE_DAILY","PERIOD"]
[334403433,1723036234551,-150.0,0.00022424,2]
[334403434,1723036234560,-3099.07522832,0.00022456,4]
[334403435,1723036234575,-9367.99327754,0.00022456,4]
[334403437,1723036238499,-155.0,0.00011105,2]
[334403438,1723036238509,-313.87,0.00013859,2]
[334403439,1723036238675,-846.26666316,0.00013859,2]
[334403440,1723036238942,-14316.65029859,0.00013859,2]
[334403441,1723036238952,-1000.0,0.00017301,2]
[334403442,1723036238962,-9899.91028482,0.00017807,2]
[334403443,1723036238972,-1000.0,0.00019464,2]
[334403444,1723036238981,-3031.1823392,0.0002038,2]
[334403445,1723036238991,-298.52611506,0.00020588,2]
[334403446,1723036239001,-3119.70333999,0.00020899,2]
[334403447,1723036239010,-159.54246192,0.00020999,2]
[334403448,1723036239020,-165.44102244,0.00020999,2]
[334403449,1723036239030,-653.37427882,0.00020999,2]
[334403450,1723036239039,-1000.0,0.00021626,2]
[334403452,1723036239049,-270.686,0.00021976,2]
[334403454,1723036239059,-1028.96262314,0.00022456,4]
[334403455,1723036239069,-1000.0,0.00022466,2]
[334403457,1723036239078,-500.0,0.0002249,2]
[334403459,1723036239087,-150.0,0.00022495,2]
[334403461,1723036239098,-934.0,0.00022549,2]
[334403463,1723036239107,-150.0,0.00022565,2]
[334403464,1723036239116,-150.0,0.00022607,2]
[334403465,1723036239126,-500.0,0.00022677,2]
[334403466,1723036239135,-2971.4468,0.00022684,2]
[334403467,1723036239146,-500.0,0.00022726,2]
[334403468,1723036239156,-150.0,0.00022738,2]
[334403469,1723036239300,-150.0,0.0002276,2]
[334403470,1723036239319,-346.52630541,0.0002277,2]
[334403471,1723036239329,-500.0,0.00022783,5]
[334403472,1723036239339,-500.0,0.00022783,5]
[334403473,1723036239349,-590.27,0.00022783,5]
[334403474,1723036239359,-736.98,0.00022783,5]
[334403475,1723036239368,-803.4344,0.00022784,2]
[334403476,1723036239379,-499.36766,0.000228,2]
[334403477,1723036239389,-150.0,0.00022838,2]
[334403478,1723036239399,-13496.031129,0.00022864,4]
[334403479,1723036239409,-1050.97324017,0.0002287,2]
[334403480,1723036239418,-179.80767654,0.00022873,2]
[334403481,1723036239427,-26992.062258,0.00022874,4]
[334403482,1723036239437,-153.53,0.00022874,2]
[334403483,1723036239447,-1050.97324017,0.00022884,2]
[334403484,1723036239456,-57069.4198,0.00022884,2]
[334403485,1723036239466,-179.80767654,0.00022887,2]
[334403486,1723036239476,-13496.031129,0.0002289,4]
[334403487,1723036239486,-13496.031129,0.0002289,4]
[334403488,1723036239495,-1500.0,0.00022893,2]
[334403489,1723036239505,-1050.97324017,0.00022897,2]
[334403490,1723036239514,-153.23162735,0.000229,2]
[334403491,1723036239524,-168.55731249,0.000229,2]
[334403492,1723036239533,-171.0,0.000229,2]
[334403493,1723036239542,-203.1549,0.000229,2]
[334403494,1723036239552,-179.80767654,0.000229,2]
[334403495,1723036239562,-1500.0,0.000229,2]
[334403496,1723036239571,-343.6593029,0.000229,4]
[334403497,1723036239581,-3416.07267404,0.000229,2]
[334403498,1723036239590,-462.61206803,0.000229,2]
[334403499,1723036239599,-260.59385824,0.000229,2]
[334403500,1723036239609,-13496.031129,0.000229,4]
[334403501,1723036239619,-13496.031129,0.00022903,4]
[334403502,1723036239628,-2899.0480588,0.00022903,2]
[334403503,1723036239638,-188.75297818,0.00022909,2]
[334403504,1723036239649,-34576.98758278,0.0002291,2]
[334403505,1723036239659,-581.03251,0.0002291,2]
[334403506,1723036239669,-420.42990772,0.00022913,2]
[334403507,1723036239678,-8068.176297,0.00022923,2]
[334403508,1723036239687,-14824.5645136,0.00022939,2]
[334403509,1723036239697,-13496.031129,0.00022954,4]
[334403510,1723036239706,-166.71147447,0.00022958,2]
[334403511,1723036239716,-26992.062258,0.0002296,4]
[334403512,1723036239725,-17628.3717087,0.0002296,4]
[334403513,1723036239735,-153.53,0.0002296,2]
[334403514,1723036239745,-150.0,0.00022965,2]
[334403515,1723036239755,-13496.031129,0.00022969,4]
[334403516,1723036239765,-13496.031129,0.00022969,4]
[334403517,1723036239775,-17628.3717087,0.00022969,4]
[334403518,1723036239784,-67480.155645,0.0002297,4]
[334403519,1723036239794,-70513.4868347,0.0002297,4]
[334403520,1723036239803,-200.0,0.00022973,2]
[334403521,1723036239813,-13496.031129,0.00022974,4]
[334403522,1723036239823,-17628.3717087,0.00022974,4]
[334403523,1723036239832,-13496.031129,0.00022979,4]
[334403524,1723036239842,-17628.3717087,0.0002298,4]
[334403525,1723036239851,-500.0,0.0002298,5]
[334403526,1723036239861,-500.0,0.0002298,5]
[334403527,1723036239870,-590.27,0.0002298,5]
[334403528,1723036239880,-736.98,0.0002298,5]
[334403529,1723036239890,-500.74300966,0.0002298,7]
[334403530,1723036239899,-153.53,0.0002298,2]
[334403531,1723036239909,-2439.1749272,0.00022984,2]
[334403532,1723036239919,-12472.9584798,0.00022984,2]
[334403533,1723036239928,-6790.2114793,0.00022984,2]
[334403534,1723036239938,-879.38786199,0.00022986,4]
[334403535,1723036239947,-218.92772331,0.00022986,4]
[334403536,1723036239956,-150.0,0.00022986,4]
[334403537,1723036239966,-150.0,0.00022986,4]
[334403538,1723036239975,-232.83113312,0.00022986,4]
[334403539,1723036239985,-272.14807603,0.00022986,4]
[334403540,1723036239994,-150.0,0.00022986,4]
[334403541,1723036240004,-150.0,0.00022986,4]
[334403542,1723036240014,-150.0,0.00022986,4]
[334403543,1723036240023,-150.0,0.00022986,4]
[334403544,1723036240035,-150.0,0.00022986,4]
[334403545,1723036240044,-161.8835525,0.00022986,4]
[334403546,1723036240054,-150.0,0.00022986,4]
[334403547,1723036240064,-150.0,0.00022986,4]
[334403548,1723036240073,-13496.031129,0.00022989,4]
[334403549,1723036240083,-17628.3717087,0.00022989,4]
[334403550,1723036240094,-500.0,0.00022989,5]
[334403551,1723036240104,-500.0,0.00022989,5]
[334403552,1723036240114,-590.27,0.00022989,5]
[334403553,1723036240124,-736.98,0.00022989,5]
[334403554,1723036240135,-40488.093387,0.0002299,4]
[334403555,1723036240146,-35256.7434174,0.0002299,4]
[334403556,1723036240156,-150.0,0.0002299,2]
[334403557,1723036240165,-26992.062258,0.0002299,4]
[334403558,1723036240175,-246797.203922,0.0002299,4]
[334403559,1723036240185,-333.743052,0.0002299,7]
[334403560,1723036240195,-333.743052,0.0002299,7]
[334403561,1723036240205,-420.42990772,0.0002299,2]
[334403562,1723036240214,-420.42990772,0.0002299,2]
[334403563,1723036240224,-153.53,0.0002299,2]
[334403564,1723036240233,-153.53,0.0002299,2]
[334403565,1723036240243,-153.53,0.0002299,2]
[334403566,1723036240253,-153.53,0.0002299,2]
[334403567,1723036240263,-153.53,0.0002299,2]
[334403568,1723036240273,-153.53,0.0002299,2]
[334403569,1723036240283,-153.53,0.0002299,2]
[334403570,1723036240293,-153.53,0.0002299,2]
[334403571,1723036240306,-153.53,0.0002299,2]
[334403572,1723036240316,-153.53,0.0002299,2]
[334403573,1723036240327,-153.53,0.0002299,2]
[334403574,1723036240336,-153.53,0.0002299,2]
[334403575,1723036240346,-153.53,0.0002299,2]
[334403576,1723036240356,-153.53,0.0002299,2]
[334403578,1723036240366,-153.53,0.0002299,2]
[334403580,1723036240378,-153.53,0.0002299,2]
[334403581,1723036240388,-153.53,0.0002299,2]
[334403582,1723036240400,-151.0,0.0002299,7]
[334403583,1723036240415,-666.84589788,0.00022997,2]
[334403584,1723036240425,-500.0,0.00022998,5]
[334403585,1723036240435,-500.0,0.00022998,5]
[334403587,1723036240444,-590.27,0.00022998,5]
[334403588,1723036240454,-736.98,0.00022998,5]
[334403589,1723036240463,-500.0,0.00022999,5]
[334403590,1723036240472,-500.0,0.00022999,5]
[334403591,1723036240482,-500.0,0.00022999,5]
[334403592,1723036240492,-500.0,0.00022999,5]
[334403593,1723036240501,-500.0,0.00022999,5]
[334403594,1723036240511,-500.0,0.00022999,5]
[334403595,1723036240520,-500.0,0.00022999,5]
[334403596,1723036240530,-164.01986094,0.00022999,5]
[334403597,1723036240539,-500.0,0.00022999,5]
[334403598,1723036240550,-500.0,0.00022999,5]
[334403600,1723036240562,-500.0,0.00022999,5]
[334403601,1723036240574,-500.0,0.00022999,5]
[334403602,1723036240586,-500.0,0.00022999,5]
[334403603,1723036240598,-500.0,0.00022999,5]
[334403604,1723036240609,-500.0,0.00022999,5]
[334403605,1723036240621,-500.0,0.00022999,5]
[334403606,1723036240631,-500.0,0.00022999,5]
[334403607,1723036240648,-500.0,0.00022999,5]
[334403608,1723036240666,-500.0,0.00022999,5]
[334403609,1723036240676,-500.0,0.00022999,5]
[334403610,1723036240687,-500.0,0.00022999,5]
[334403611,1723036240698,-500.0,0.00022999,5]
[334403612,1723036240710,-500.0,0.00022999,5]
[334403613,1723036240721,-504.0,0.00022999,5]
[334403614,1723036240731,-590.27,0.00022999,5]
[334403615,1723036240742,-590.27,0.00022999,5]
[334403616,1723036240751,-590.27,0.00022999,5]
[334403617,1723036240761,-590.27,0.00022999,5]
[334403618,1723036240772,-590.27,0.00022999,5]
[334403619,1723036240782,-590.27,0.00022999,5]
[334403620,1723036240793,-590.27,0.00022999,5]
[334403621,1723036240804,-590.27,0.00022999,5]
[334403622,1723036240813,-590.27,0.00022999,5]
[334403623,1723036240824,-590.27,0.00022999,5]
[334403624,1723036240833,-590.27,0.00022999,5]
[334403625,1723036240843,-590.27,0.00022999,5]
[334403626,1723036240853,-590.27,0.00022999,5]
[334403627,1723036240863,-590.27,0.00022999,5]
[334403628,1723036240873,-590.27,0.00022999,5]
[334403629,1723036240884,-590.27,0.00022999,5]
[334403630,1723036240900,-590.27,0.00022999,5]
[334403631,1723036240910,-590.27,0.00022999,5]
[334403632,1723036240920,-590.27,0.00022999,5]
[334403633,1723036240930,-590.48,0.00022999,5]
[334403634,1723036240940,-736.98,0.00022999,5]
[334403635,1723036240949,-736.98,0.00022999,5]
[334403636,1723036240959,-736.98,0.00022999,5]
[334403637,1723036240969,-736.98,0.00022999,5]
[334403638,1723036240979,-736.98,0.00022999,5]
[334403639,1723036240989,-736.98,0.00022999,5]
[334403640,1723036240998,-736.98,0.00022999,5]
[334403641,1723036241008,-736.98,0.00022999,5]
[334403642,1723036241018,-736.98,0.00022999,5]
[334403643,1723036241027,-736.98,0.00022999,5]
[334403644,1723036241038,-736.98,0.00022999,5]
[334403645,1723036241047,-736.98,0.00022999,5]
[334403646,1723036241057,-736.98,0.00022999,5]
[334403648,1723036241068,-736.98,0.00022999,5]
[334403649,1723036241078,-736.98,0.00022999,5]
[334403650,1723036241087,-736.98,0.00022999,5]
[334403651,1723036241097,-736.98,0.00022999,5]
[334403652,1723036241107,-736.98,0.00022999,5]
[334403653,1723036241117,-736.98,0.00022999,5]
[334403654,1723036241127,-737.05679588,0.00022999,5]
[334403655,1723036241136,-150.0,0.00022999,10]
[334403656,1723036241150,-150.0,0.00022999,10]
[334403657,1723036241160,-150.0,0.00022999,10]
[334403658,1723036241169,-150.0,0.00022999,10]
[334403659,1723036241179,-150.0,0.00022999,10]
[334403660,1723036241189,-150.0,0.00022999,10]
[334403661,1723036241199,-150.0,0.00022999,10]
[334403662,1723036241209,-150.0,0.00022999,10]
[334403663,1723036241219,-42803.33882296,0.00023,9]
[334403664,1723036241265,-155.0,0.00011322,2]
[334403665,1723036241275,-416.36958474,0.00023,9]
[334403666,1723036241289,-1358.30303484,0.00023,9]
[334403667,1723036241301,-7759.32294957,0.00023,9]
[334403668,1723036241312,-323.769,0.00023,9]
[334403669,1723036241324,-489.17891229,0.00023,9]
[334403670,1723036241371,-1184.51400069,0.00020899,2]
[334403671,1723036241382,-1728.39604006,0.00023,9]
[334403672,1723036241407,-313.59536619,0.00020899,2]
[334403673,1723036241417,-1122.78380681,0.00023,9]
[334403674,1723036241428,-315.3343428,0.00023,9]
[334403692,1723036243664,-2834.94827879,0.00013996,2]
[334403693,1723036243674,-2340.89780687,0.0002038,2]
[334403694,1723036243684,-962.114681,0.00020831,2]
[334403695,1723036243694,-155.0,0.00020899,2]
[334403696,1723036243703,-29775.05456779,0.00023,9]
[334403697,1723036243713,-1000.0,0.00023,10]
[334403698,1723036243723,-35011.79810187,0.00023,3]
[334403699,1723036243732,-1000.0,0.00023,7]
[334403700,1723036243743,-245.41754041,0.00023,5]
[334403701,1723036243755,-1266.43577466,0.00023,5]
[334403702,1723036243766,-4539.99999998,0.00023,5]
[334403703,1723036243782,-1377.74172289,0.00023,5]
[334403704,1723036243793,-468.25252127,0.00023,5]
[334403706,1723036244100,-4675.74706937,0.00023,5]
[334403712,1723036246596,-1596.77413391,0.00012928,2]
[334403715,1723036396993,500.0,0.00024932,120]
[334403721,1723036998709,500.0,0.00024932,120]
[334403722,1723037253582,-2785.986607,0.00010904,2]
[334403723,1723037253610,-114.013393,0.00010959,2]
[334403724,1723037259146,-524.586607,0.00010959,2]
[334403725,1723037259170,-173.59235134,0.00010985,2]
[334403726,1723037259197,-19301.82104166,0.00011,2]
[334403727,1723037260693,-20000.0,0.00011,2]
[334403728,1723037260731,-20000.0,0.00011,2]
[334403729,1723037261633,-20000.0,0.00011,2]
[334403730,1723037262268,-20000.0,0.00011,2]
[334403731,1723037262742,-20000.0,0.00011,2]
[334403732,1723037267955,25000.0,0.00024658,30]
[334403733,1723037270915,25000.0,0.00024658,31]
[334403734,1723037274152,25000.0,0.00024658,32]
[334403735,1723037277879,25000.0,0.00024658,33]
[334403736,1723037278425,-1250.0,0.00011,2]
[334403758,1723037432770,-300.0,0.00010899,2]
[334403759,1723037432780,-1000.0,0.000109,2]
[334403760,1723037432790,-860.11960219,0.000109,2]
[334403761,1723037432803,-3348.64538502,0.000109,2]
[334403762,1723037432820,-2500.0,0.000109,2]
[334403763,1723037432832,-2498.5,0.000109,2]
[334403764,1723037432848,-342.26833736,0.000109,2]
[334403765,1723037432860,-594.67731106,0.000109,2]
[334403766,1723037432872,-251.35461498,0.000109,2]
[334403767,1723037432884,-56.90684939,0.000109,2]
[334403768,1723037432893,-302.76280395,0.000109,2]
[334403769,1723037432905,-1099.75709605,0.000109,2]
[334403770,1723037432917,-1316.24290395,0.000109,2]
[334403771,1723037432929,-690.07899605,0.000109,2]
[334403772,1723037432941,-1479.35270892,0.000109,2]
[334403773,1723037432952,-1479.35270892,0.000109,2]
[334403774,1723037432964,-194.68547152,0.000109,2]
[334403775,1723037432975,-850.48368994,0.000109,2]
[334403776,1723037432989,-2000.0,0.000109,2]
[334403777,1723037433016,-5711.0,0.000109,2]
[334403778,1723037433030,-1284.35585131,0.000109,2]
[334403779,1723037433043,-876.72999162,0.000109,2]
[334403780,1723037433057,-2194.55656055,0.000109,2]
[334403781,1723037433117,1060.00000001,0.00024658,30]
[334403800,1723037437943,-4985.0801,0.000109,2]
[334403801,1723037437955,-1575.43818511,0.000109,2]
[334403802,1723037438033,-297.48711185,0.000109,2]
[334403804,1723037439689,-377.07995516,0.000109,2]
[334403831,1723037442864,-30092.30015446,0.000109,2]
[334403832,1723037442874,-500.0,0.00010999,2]
[334403833,1723037442885,-500.0,0.00010999,2]
[334403834,1723037442894,-500.0,0.00010999,2]
[334403835,1723037442904,-489.76750484,0.00010999,2]
[334403836,1723037442914,-38408.21503864,0.00011,2]
[334403837,1723037442928,-8479.63585047,0.00011,2]
[334403838,1723037442945,-10393.72488418,0.00011,2]
[334403856,1723037445408,596.73458658,0.000105,2]
[334403857,1723037445433,884.97541342,0.000105,2]
[334403866,1723037445937,-1645.26504519,0.00011,2]
[334403867,1723037446046,-648.45221928,0.00011,2]
[334403868,1723037598219,500.0,0.00024932,120]
[334403869,1723037717024,1000.0,0.00024658,30]
[334403870,1723037718063,1000.0,0.00024658,30]
[334403871,1723037719427,1000.0,0.00024658,30]
[334403872,1723037720067,1000.0,0.00024658,30]
[334403873,1723037813137,633.0,0.00024658,30]
[334403875,1723037855130,224.59,0.00010425,2]
[334403876,1723037855458,240.0,0.00024658,30]
[334403877,1723037951741,247.96,0.00025,60]
[334403879,1723038019193,1000.0,0.00025,60]
[334403880,1723038200502,500.0,0.00024932,120]
[334403881,1723038351889,213.36,0.00010009,2]
[334403883,1723038422007,25000.0,0.00024658,30]
[334403884,1723038423916,170.43469918,0.00010009,2]
[334403885,1723038424262,7575.17855654,0.00010009,2]
[334403886,1723038424926,181.75852113,0.00010009,2]
[334403887,1723038425071,3069.19453458,0.00010009,2]
[334403888,1723038425255,25000.0,0.00024658,31]
[334403889,1723038433525,25000.0,0.00024658,32]
[334403890,1723038436145,227.67484022,0.00010009,2]
[334403891,1723038436610,1954.27141848,0.00010009,2]
[334403892,1723038438315,25000.0,0.00024658,33]
[334403893,1723038440627,816.9394172,0.00010009,2]
[334403894,1723038444308,759.78183181,0.00010009,2]
[334403895,1723038451008,1550.0,0.0001,2]
[334403896,1723038512352,170.37610182,0.0001,2]
[334403897,1723038518919,181.75852113,0.0001,2]
[334403900,1723038537081,14713.86295399,0.00024658,30]
[334403904,1723038608706,1000.0,0.00025,60]
[334403905,1723038617322,1000.0,0.00025,60]
[334403906,1723038630625,153.998763,0.00025,60]
[334403923,1723038631880,-150.0,0.00010877,2]
[334403924,1723038631890,-150.0,0.00010899,2]
[334403925,1723038631900,-300.0,0.00010899,2]
[334403926,1723038631909,-1000.0,0.000109,2]
[334403927,1723038631920,-1000.0,0.000109,2]
[334403928,1723038631930,-1000.0,0.000109,2]
[334403929,1723038631940,-1000.0,0.000109,2]
[334403930,1723038631950,-153.23162734,0.000109,2]
[334403931,1723038631960,-1075.0,0.000109,2]
[334403932,1723038631969,-168.55731249,0.000109,2]
[334403933,1723038631979,-1001.0,0.000109,2]
[334403934,1723038631988,-921.09510599,0.000109,2]
[334403935,1723038631998,-184.43280601,0.000109,2]
[334403936,1723038632007,-346.5263054,0.000109,2]
[334403937,1723038632018,-173.59235132,0.000109,2]
[334403938,1723038632027,-184.78,0.00010959,2]
[334403939,1723038632037,-153.99,0.00010959,2]
[334403940,1723038632047,-769.96,0.00010959,2]
[334403941,1723038632057,-201.26135232,0.00010999,2]
[334403942,1723038632067,-346.36280245,0.00010999,2]
[334403943,1723038632077,-300.0,0.00010999,2]
[334403944,1723038632087,-37869.40300763,0.00011,2]
[334403945,1723038632102,-743.18574343,0.00011,2]
[334403946,1723038632114,-1765.30034146,0.00011,2]
[334403947,1723038632125,-1127.61331614,0.00011,2]
[334403950,1723038632138,-280.03331614,0.00011,2]
[334403952,1723038632150,-858.782925,0.00011,2]
[334403954,1723038632162,-6353.71704752,0.00011,2]
[334403956,1723038632179,-263233.34939293,0.00011,2]
[334403959,1723038632191,-9359.4604728,0.00011,2]
[334403974,1723038638066,-19074.73857867,0.00011,2]
[334403981,1723038638192,-421.78588728,0.00011,2]
[334403982,1723038638422,-863.53586026,0.00011,2]
[334403983,1723038638434,-11129.9312,0.00011,2]
[334404003,1723038642548,-3015.37057037,0.00011,2]
[334404004,1723038642560,-6200.1,0.00011,2]
[334404005,1723038642572,-677.86115073,0.00011,2]
[334404006,1723038642594,-391.951146,0.00011,2]
[334404007,1723038642616,-4898.45,0.00011,2]
[334404008,1723038642628,-2925.98626232,0.00011,2]
[334404009,1723038642640,-4125.98200796,0.00011,2]
[334404010,1723038642756,-1458.91842534,0.00011,2]
[334404012,1723038642768,-18278.57933545,0.00011,2]
[334404014,1723038642781,-38721.42066455,0.00011,2]
[334404022,1723038642843,-54949.59560973,0.00011,2]
[334404026,1723038642978,-27070.93215039,0.00011,2]
[334404027,1723038642987,-665690.46708473,0.00011,2]
[334404028,1723038642997,-323.36238629,0.00011005,2]
[334404029,1723038643007,-578.55400603,0.00011105,7]
[334404030,1723038643016,-15476.78696175,0.00011105,2]
[334404031,1723038643025,-25312.48255048,0.00011186,2]
[334404032,1723038643036,-3136.09940103,0.00011324,2]
[334404033,1723038643045,-9899.91028482,0.00011324,2]
[334404034,1723038643055,-323.36238628,0.00011371,2]
[334404035,1723038643064,-820.97,0.00011628,2]
[334404036,1723038643073,-1580.12,0.00011653,2]
[334404037,1723038643083,-323.36238628,0.00011736,2]
[334404038,1723038643095,-250.0,0.00011836,2]
[334404039,1723038643105,-245.12228599,0.00011896,2]
[334404040,1723038643118,-644.69103089,0.00011959,2]
[334404041,1723038643127,-499.99,0.00011978,2]
[334404042,1723038643136,-420.0,0.00011978,2]
[334404043,1723038643146,-400.0,0.00011984,2]
[334404044,1723038643157,-500.0,0.00012091,2]
[334404045,1723038643166,-289.9,0.00012102,2]
[334404046,1723038643175,-213.36,0.00012273,2]
[334404047,1723038643187,-484.19376,0.0001228,2]
[334404048,1723038643197,-697.83,0.00012289,2]
[334404049,1723038643207,-484.19376,0.0001233,2]
[334404050,1723038643216,-5000.0,0.0001236,2]
[334404051,1723038643226,-3031.1823392,0.00012391,2]
[334404052,1723038643236,-2834.94827879,0.00012391,2]
[334404053,1723038643245,-600.0,0.00012393,2]
[334404054,1723038643254,-173.97,0.00012393,2]
[334404055,1723038643265,-484.19376,0.0001241,2]
[334404056,1723038643274,-178.46,0.00012459,2]
[334404057,1723038643285,-484.19376,0.000125,2]
[334404058,1723038643295,-484.19376,0.0001257,2]
[334404059,1723038643304,-2209.93398544,0.00012581,2]
[334404060,1723038643314,-3119.70333999,0.00012581,2]
[334404061,1723038643323,-274.39,0.00012599,2]
[334404062,1723038643333,-203.88402176,0.00012613,2]
[334404063,1723038643346,-484.19376,0.0001265,2]
[334404064,1723038643356,-2340.89780687,0.0001269,2]
[334404065,1723038643365,-3978.09066242,0.00012855,2]
[334404067,1723038643375,-1297.73941226,0.00012883,2]
[334404069,1723038643384,-500.0,0.00012928,2]
[334404071,1723038643394,-500.0,0.00012928,2]
[334404073,1723038643403,-500.0,0.00012928,2]
[334404075,1723038643413,-500.0,0.00012928,2]
[334404077,1723038643423,-500.0,0.00012928,2]
[334404079,1723038643433,-500.0,0.00012928,2]
[334404081,1723038643442,-500.0,0.00012928,2]
[334404083,1723038643452,-500.0,0.00012928,2]
[334404085,1723038643461,-500.0,0.00012928,2]
[334404087,1723038643471,-500.0,0.00012928,2]
[334404089,1723038643480,-500.0,0.00012928,2]
[334404090,1723038643490,-500.0,0.00012928,2]
[334404091,1723038643499,-500.0,0.00012928,2]
[334404092,1723038643508,-500.0,0.00012928,2]
[334404093,1723038643518,-500.0,0.00012928,2]
[334404094,1723038643527,-500.0,0.00012928,2]
[334404095,1723038643538,-500.0,0.00012928,2]
[334404096,1723038643547,-500.0,0.00012928,2]
[334404097,1723038643556,-500.0,0.00012928,2]
[334404098,1723038643566,-500.0,0.00012928,2]
[334404099,1723038643575,-500.0,0.00012928,2]
[334404100,1723038643588,-500.0,0.00012928,2]
[334404101,1723038643597,-500.0,0.00012928,2]
[334404102,1723038643607,-500.0,0.00012928,2]
[334404103,1723038643616,-500.0,0.00012928,2]
[334404104,1723038643625,-500.0,0.00012928,2]
[334404105,1723038643635,-500.0,0.00012928,2]
[334404106,1723038643644,-500.0,0.00012928,2]
[334404107,1723038643654,-500.0,0.00012928,2]
[334404108,1723038643663,-500.0,0.00012928,2]
[334404109,1723038643673,-500.0,0.00012928,2]
[334404110,1723038643682,-500.0,0.00012928,2]
[334404111,1723038643691,-500.0,0.00012928,2]
[334404112,1723038643701,-500.0,0.00012928,2]
[334404113,1723038643710,-500.0,0.00012928,2]
[334404114,1723038643719,-500.0,0.00012928,2]
[334404115,1723038643728,-500.0,0.00012928,2]
[334404116,1723038643737,-500.0,0.00012928,2]
[334404117,1723038643747,-500.0,0.00012928,2]
[334404118,1723038643756,-500.0,0.00012928,2]
[334404119,1723038643765,-500.0,0.00012928,2]
[334404120,1723038643774,-500.0,0.00012928,2]
[334404121,1723038643783,-500.0,0.00012928,2]
[334404122,1723038643791,-500.0,0.00012928,2]
[334404123,1723038643800,-500.0,0.00012928,2]
[334404124,1723038643810,-500.0,0.00012928,2]
[334404125,1723038643819,-500.0,0.00012928,2]
[334404126,1723038643828,-500.0,0.00012928,2]
[334404127,1723038643838,-500.0,0.00012928,2]
[334404128,1723038643847,-500.0,0.00012928,2]
[334404129,1723038643857,-500.0,0.00012928,2]
[334404130,1723038643867,-500.0,0.00012928,2]
[334404131,1723038643876,-500.0,0.00012928,2]
[334404132,1723038643886,-500.0,0.00012928,2]
[334404133,1723038643895,-500.0,0.00012928,2]
[334404134,1723038643904,-500.0,0.00012928,2]
[334404135,1723038643914,-500.0,0.00012928,2]
[334404136,1723038643923,-500.0,0.00012928,2]
[334404137,1723038643933,-500.0,0.00012928,2]
[334404138,1723038643942,-500.0,0.00012928,2]
[334404139,1723038643951,-802.0,0.00012928,2]
[334404140,1723038643961,-1000.0,0.00013,3]
[334404141,1723038643969,-1500.0,0.00013066,2]
[334404142,1723038643978,-1500.0,0.00013066,2]
[334404143,1723038643987,-1184.51400069,0.00013066,2]
[334404144,1723038643997,-1074.23899927,0.00013066,2]
[334404145,1723038644006,-298.52611506,0.00013125,2]
[334404146,1723038644015,-2385.26322028,0.00013132,2]
[334404147,1723038644024,-962.114681,0.00013132,2]
[334404148,1723038644034,-2385.26322028,0.00013132,2]
[334404149,1723038644043,-587.0,0.00013164,2]
[334404150,1723038644052,-653.37427882,0.00013199,2]
[334404151,1723038644061,-653.37427882,0.00013199,2]
[334404152,1723038644070,-1138.64679831,0.00013283,2]
[334404153,1723038644080,-155.0,0.00013303,2]
[334404154,1723038644092,-158.35869196,0.00013303,2]
[334404155,1723038644101,-519.91345954,0.0001331,2]
[334404156,1723038644113,-155.0,0.00013378,2]
[334404157,1723038644123,-155.0,0.00013378,2]
[334404158,1723038644132,-211.62746688,0.00013378,2]
[334404159,1723038644141,-359.26552808,0.00013378,2]